fUSD/lending_fUSD_20260520
["ID","MTS","AMOUNT","RATE_DAILY","PERIOD"]
[422677443,1779235846000,-500.0,0.00013698,2]
[422677447,1779235846000,-2842298.48579418,0.00015,2]
[422677444,1779235846000,-500.0,0.00013698,2]
[422677439,1779235846000,-500.0,0.00013698,2]
[422677440,1779235846000,-500.0,0.00013698,2]
[422677432,1779235846000,-375.4692725,0.00011707,2]
[422677425,1779235846000,-942.62744777,0.00015,2]
[422677433,1779235846000,-317.42,0.00011707,2]
[422677436,1779235846000,-1235.81804247,0.00013565,2]
[422677431,1779235846000,-463.52887949,0.00011707,2]
[422677435,1779235846000,-150.0,0.00012044,2]
[422677428,1779235846000,-764.8018764,0.00015,2]
[422677368,1779235846000,-1368029.39131952,0.00015,2]
[422677364,1779235846000,-300.0,0.00014999,2]
[422677360,1779235846000,-300.0,0.00014999,2]
[422677357,1779235846000,-666.0,0.00014999,2]
[422677445,1779235846000,-151.0,0.00014987,2]
[422677434,1779235846000,-1283.01451298,0.00011707,2]
[422677450,1779235846000,-415.856399,0.00015,2]
[422677437,1779235846000,-500.0,0.00013698,2]
[422677451,1779235846000,-500.0,0.00013698,2]
[422677449,1779235846000,-916495.95007445,0.00015,2]
[422677495,1779235846000,-4253.0,0.00015,2]
[422677492,1779235846000,-4753.68656283,0.00015,2]
[422677490,1779235846000,-14408.17879463,0.00015,2]
[422677483,1779235846000,-3542.0,0.00015,2]
[422677488,1779235846000,-163718.72966228,0.00015,2]
[422677486,1779235846000,-399.52434579,0.00015,2]
[422677481,1779235846000,-3101.36321665,0.00015,2]
[422677478,1779235846000,-28343.16053284,0.00015,2]
[422677476,1779235846000,-151.0,0.00014987,2]
[422677474,1779235846000,-2204.16083423,0.00013736,2]
[422677471,1779235846000,-4307.74967549,0.00013736,2]
[422677469,1779235846000,-1002.48437314,0.00013736,2]
[422677497,1779235846000,-6536.10693626,0.00015,2]
[422677467,1779235846000,-2374.92596407,0.00013736,2]
[422677464,1779235846000,-1905.1311282,0.00013736,2]
[422677458,1779235846000,-7568.61940722,0.00013736,2]
[422677457,1779235846000,-229.07466549,0.00013698,2]
[422677462,1779235846000,-1093.1589351,0.00013736,2]
[422677460,1779235846000,-1657.59781955,0.00013736,2]
[422677456,1779235846000,-301.96676387,0.00013698,2]
[422677454,1779235846000,-500.0,0.00013698,2]
[422677455,1779235846000,-795.99999978,0.00015,2]
[422677453,1779235846000,-273.1454,0.00015,2]
[422677452,1779235846000,-1416.65,0.00015,2]
[422677523,1779235847000,-1014.18,0.00015,2]
[422677518,1779235847000,-419345.76275888,0.00015,2]
[422677516,1779235847000,-1235.81804247,0.000149,2]
[422677526,1779235847000,-353.49406,0.00015,2]
[422677514,1779235847000,-1278.33888157,0.00013304,2]
[422677528,1779235847000,-3850.0,0.00015,2]
[422677512,1779235847000,-1161.09378338,0.00013304,2]
[422677676,1779236080000,478.72,0.00030136,120]
[422677678,1779236481000,-193.18,0.00010976,2]
[422677677,1779236481000,-158.72,0.00010766,2]
[422677679,1779236533000,161.93,0.00028973,120]
[422677680,1779236544000,160.11,5.522e-05,2]
[422677683,1779236545000,160.11,9.501e-05,2]
[422677682,1779236545000,160.11,8.175e-05,2]
[422677681,1779236545000,160.11,6.848e-05,2]
[422677711,1779236906000,478.71,0.00030136,120]
[422677712,1779236941000,1000.0,0.00030135,120]
[422677714,1779236947000,2680.25,0.00030137,120]
[422677715,1779236955000,478.71,0.00030136,120]
[422677716,1779236972000,478.71,0.00030136,120]
[422677718,1779236986000,478.72,0.00030136,120]
[422677748,1779237033000,-1200.0,0.00010826,2]
[422677757,1779237033000,-697.7,0.00010889,2]
[422677751,1779237033000,-50332.70338386,0.00010827,2]
[422677747,1779237033000,-300.0,0.00010826,2]
[422677749,1779237033000,-150.0,0.00010826,2]
[422677755,1779237033000,-101458.60868576,0.00010827,2]
[422677746,1779237033000,-176.83080981,0.00010623,2]
[422677745,1779237033000,-344.0,0.00010623,2]
[422677743,1779237033000,-149.48581757,0.00010535,2]
[422677742,1779237033000,-781.95418243,0.00010535,2]
[422677744,1779237033000,-176.86919019,0.00010623,2]
[422677750,1779237033000,-1000.0,0.00010826,2]
[422677753,1779237033000,-7696.96993133,0.00010827,2]
[422677756,1779237033000,-160.11,0.00010827,2]
[422677759,1779237033000,-150.0,0.00010959,2]
[422677758,1779237033000,-150.0,0.00010934,2]
[422677776,1779237033000,-1254.41808677,0.00011599,2]
[422677774,1779237033000,-1016.05439934,0.00011599,2]
[422677770,1779237033000,-16988.51086175,0.000115,2]
[422677766,1779237033000,-2000.0,0.00011132,2]
[422677771,1779237033000,-200.0,0.000115,4]
[422677769,1779237033000,-697.7,0.0001142,2]
[422677772,1779237033000,-166.66,0.00011533,2]
[422677767,1779237033000,-697.7,0.00011154,2]
[422677768,1779237033000,-166.66,0.00011165,2]
[422677764,1779237033000,-242.0,0.00011042,2]
[422677763,1779237033000,-392.31,0.00010993,2]
[422677761,1779237033000,-7171.78,0.00010976,2]
[422677765,1779237033000,-9999.99,0.00011042,2]
[422677819,1779237038000,-494.55659488,0.00011699,2]
[422677803,1779237038000,-157.78111232,0.0001169,2]
[422677805,1779237038000,-1098.07046975,0.00011699,3]
[422677806,1779237038000,-1098.07046975,0.00011699,3]
[422677802,1779237038000,-697.7,0.00011686,2]
[422677807,1779237038000,-1098.07046975,0.00011699,3]
[422677808,1779237038000,-529.72840419,0.00011699,2]
[422677814,1779237038000,-500.0,0.00011699,2]
[422677815,1779237038000,-500.0,0.00011699,2]
[422677820,1779237038000,-33191.258,0.000117,2]
[422677817,1779237038000,-500.0,0.00011699,2]
[422677816,1779237038000,-500.0,0.00011699,2]
[422677823,1779237038000,-500.0,0.000117,2]
[422677824,1779237038000,-600.0,0.000117,4]
[422677813,1779237038000,-500.0,0.00011699,2]
[422677822,1779237038000,-1500000.0,0.000117,2]
[422677800,1779237038000,-500.0,0.00011686,2]
[422677818,1779237038000,-289.17730148,0.00011699,2]
[422677825,1779237038000,-208.58623393,0.00011715,2]
[422677827,1779237038000,-150.0,0.00011766,2]
[422677833,1779237038000,-255.0,0.00011866,2]
[422677834,1779237038000,-29963.62308137,0.00011887,2]
[422677821,1779237038000,-2000.0,0.000117,2]
[422677804,1779237038000,-150.0,0.00011694,7]
[422677790,1779237038000,-14608.32671584,0.000116,2]
[422677812,1779237038000,-500.0,0.00011699,2]
[422677835,1779237038000,-420.0,0.00011899,2]
[422677781,1779237038000,-2500000.0,0.000115,2]
[422677787,1779237038000,-5000.0,0.000116,2]
[422677783,1779237038000,-454.184,0.00011599,2]
[422677782,1779237038000,-3938.84551389,0.00011599,2]
[422677785,1779237038000,-1264.40909186,0.000116,2]
[422677786,1779237038000,-29963.62308138,0.000116,2]
[422677784,1779237038000,-402.44586272,0.000116,2]
[422677789,1779237038000,-2500.0,0.000116,2]
[422677788,1779237038000,-400.0,0.000116,4]
[422677809,1779237038000,-500.0,0.00011699,2]
[422677793,1779237038000,-813.14422165,0.000116,2]
[422677799,1779237038000,-2002.89,0.00011671,2]
[422677798,1779237038000,-6049.0,0.00011671,2]
[422677794,1779237038000,-411.93934749,0.000116,2]
[422677796,1779237038000,-150.99,0.00011642,2]
[422677791,1779237038000,-619.61673056,0.000116,2]
[422677797,1779237038000,-152.0,0.00011651,2]
[422677795,1779237038000,-210.11647569,0.00011642,2]
[422677801,1779237038000,-312.85151345,0.00011686,2]
[422677811,1779237038000,-500.0,0.00011699,2]
[422677810,1779237038000,-500.0,0.00011699,2]
[422677792,1779237038000,-6985.4255534,0.000116,2]
[422677829,1779237038000,-170.0,0.000118,2]
[422677842,1779237038000,-1680.0,0.00011909,2]
[422677838,1779237038000,-166.66,0.00011902,2]
[422677879,1779237038000,-29963.62308137,0.00012462,2]
[422677888,1779237038000,-166.66,0.00012639,2]
[422677885,1779237038000,-14608.32671583,0.00012543,2]
[422677890,1779237038000,-1264.40909183,0.000127,2]
[422677891,1779237038000,-605.0,0.00012712,2]
[422677902,1779237038000,-158.72,0.00012919,2]
[422677904,1779237038000,-433.0,0.00013003,2]
[422677893,1779237038000,-29963.62308137,0.0001275,2]
[422677906,1779237038000,-166.66,0.00013007,2]
[422677908,1779237038000,-14608.32671583,0.00013014,2]
[422677897,1779237038000,-275.27,0.00012877,2]
[422677916,1779237038000,-1256.09875,0.00013058,2]
[422677899,1779237038000,-16988.51086168,0.00012899,2]
[422677911,1779237038000,-3470.789942,0.00013058,2]
[422677914,1779237038000,-1851.339725,0.00013058,2]
[422677910,1779237038000,-29963.62308137,0.00013037,2]
[422677926,1779237038000,-1222.885003,0.00013098,2]
[422677923,1779237038000,-1658.224638,0.00013098,2]
[422677920,1779237038000,-587.0,0.00013078,2]
[422677921,1779237038000,-205.441204,0.00013098,2]
[422677918,1779237038000,-500.0,0.0001307,2]
[422677928,1779237038000,-2351.0,0.000131,2]
[422677836,1779237038000,-1000.0,0.000119,4]
[422677887,1779237038000,-25184.85,0.00012579,2]
[422677877,1779237038000,-16988.51086168,0.00012432,2]
[422677895,1779237038000,-500.0,0.00012796,2]
[422677873,1779237038000,-150.0,0.00012382,7]
[422677875,1779237038000,-215.41524244,0.00012382,7]
[422677832,1779237038000,-158.72,0.00011843,2]
[422677831,1779237038000,-160.0,0.00011821,2]
[422677826,1779237038000,-16988.51086168,0.00011733,2]
[422677830,1779237038000,-215.15951567,0.00011821,2]
[422677828,1779237038000,-800.0,0.000118,4]
[422677852,1779237038000,-1264.40909183,0.0001215,2]
[422677844,1779237038000,-250.0,0.0001191,2]
[422677846,1779237038000,-16988.51086168,0.00011966,2]
[422677840,1779237038000,-250.0,0.00011909,2]
[422677855,1779237038000,-29963.62308137,0.00012175,2]
[422677858,1779237038000,-16988.51086168,0.00012199,2]
[422677848,1779237038000,-500.0,0.00011974,2]
[422677850,1779237038000,-14608.32671583,0.00012071,2]
[422677860,1779237038000,-500.0,0.00012248,2]
[422677862,1779237038000,-5209.10364584,0.00012259,2]
[422677867,1779237038000,-161.93,0.00012329,2]
[422677869,1779237038000,-392.31,0.00012367,2]
[422677865,1779237038000,-166.66,0.0001227,2]
[422677871,1779237038000,-150.0,0.00012382,7]
[422677881,1779237038000,-500.0,0.00012522,2]
[422677883,1779237038000,-2000.0,0.00012523,2]
[422677889,1779237038000,-16988.51086168,0.00012666,2]
[422678016,1779237039000,-623.0,0.0001315,2]
[422678014,1779237039000,-500.0,0.0001315,2]
[422678012,1779237039000,-623.0,0.0001315,2]
[422678021,1779237039000,-623.0,0.0001315,2]
[422678005,1779237039000,-500.0,0.0001315,2]
[422677993,1779237039000,-623.0,0.0001315,2]
[422678003,1779237039000,-623.0,0.0001315,2]
[422678007,1779237039000,-623.0,0.0001315,2]
[422677996,1779237039000,-500.0,0.0001315,2]
[422678018,1779237039000,-500.0,0.0001315,2]
[422677991,1779237039000,-500.0,0.0001315,2]
[422678009,1779237039000,-500.0,0.0001315,2]
[422678031,1779237039000,-500.0,0.0001315,2]
[422678056,1779237039000,-623.0,0.0001315,2]
[422678023,1779237039000,-500.0,0.0001315,2]
[422678025,1779237039000,-623.0,0.0001315,2]
[422678029,1779237039000,-623.0,0.0001315,2]
[422678036,1779237039000,-623.0,0.0001315,2]
[422678042,1779237039000,-500.0,0.0001315,2]
[422678033,1779237039000,-623.0,0.0001315,2]
[422678038,1779237039000,-623.0,0.0001315,2]
[422678040,1779237039000,-623.0,0.0001315,2]
[422678044,1779237039000,-623.0,0.0001315,2]
[422678054,1779237039000,-623.0,0.0001315,2]
[422678046,1779237039000,-623.0,0.0001315,2]
[422677979,1779237039000,-500.0,0.0001315,2]
[422678027,1779237039000,-623.0,0.0001315,2]
[422677989,1779237039000,-500.0,0.0001315,2]
[422677938,1779237039000,-500.0,0.0001315,2]
[422677987,1779237039000,-500.0,0.0001315,2]
[422678058,1779237039000,-623.0,0.0001315,2]
[422677935,1779237039000,-241.34087735,0.0001315,2]
[422677934,1779237039000,-500.0,0.0001315,2]
[422677940,1779237039000,-500.0,0.0001315,2]
[422677932,1779237039000,-150.0,0.0001315,2]
[422677929,1779237039000,-16988.51086168,0.00013132,2]
[422677942,1779237039000,-426.20852031,0.0001315,2]
[422677944,1779237039000,-150.0,0.0001315,2]
[422677955,1779237039000,-500.0,0.0001315,2]
[422677948,1779237039000,-150.0,0.0001315,2]
[422677951,1779237039000,-500.0,0.0001315,2]
[422677949,1779237039000,-275.90692005,0.0001315,2]
[422677959,1779237039000,-500.0,0.0001315,2]
[422677957,1779237039000,-500.0,0.0001315,2]
[422677953,1779237039000,-500.0,0.0001315,2]
[422677946,1779237039000,-150.0,0.0001315,2]
[422677961,1779237039000,-500.0,0.0001315,2]
[422677969,1779237039000,-500.0,0.0001315,2]
[422677967,1779237039000,-500.0,0.0001315,2]
[422677965,1779237039000,-500.0,0.0001315,2]
[422677963,1779237039000,-632.65490177,0.0001315,2]
[422677981,1779237039000,-500.0,0.0001315,2]
[422677970,1779237039000,-597.79764243,0.0001315,2]
[422677983,1779237039000,-500.0,0.0001315,2]
[422677973,1779237039000,-500.0,0.0001315,2]
[422677974,1779237039000,-500.0,0.0001315,2]
[422677985,1779237039000,-500.0,0.0001315,2]
[422677976,1779237039000,-500.0,0.0001315,2]
[422678061,1779237039000,-623.0,0.0001315,2]
[422678170,1779237039000,-150.0,0.00013488,2]
[422678050,1779237039000,-623.0,0.0001315,2]
[422678122,1779237039000,-500.0,0.0001315,2]
[422678132,1779237039000,-6985.4255534,0.0001325,2]
[422678134,1779237039000,-813.14422165,0.0001325,2]
[422678141,1779237039000,-29963.62308137,0.00013325,2]
[422678130,1779237039000,-619.61673054,0.0001325,2]
[422678136,1779237039000,-411.93934749,0.0001325,2]
[422678124,1779237039000,-319.28543884,0.0001315,2]
[422678138,1779237039000,-500.0,0.00013315,2]
[422678126,1779237039000,-500.0,0.00013208,2]
[422678143,1779237039000,-500.0,0.00013344,2]
[422678148,1779237039000,-14608.32671583,0.00013486,2]
[422678151,1779237039000,-150.0,0.00013488,2]
[422678120,1779237039000,-500.0,0.0001315,2]
[422678146,1779237039000,-500.0,0.00013482,2]
[422678155,1779237039000,-150.0,0.00013488,2]
[422678157,1779237039000,-150.0,0.00013488,2]
[422678159,1779237039000,-150.0,0.00013488,2]
[422678164,1779237039000,-150.0,0.00013488,2]
[422678163,1779237039000,-150.0,0.00013488,2]
[422678161,1779237039000,-150.0,0.00013488,2]
[422678166,1779237039000,-150.0,0.00013488,2]
[422678168,1779237039000,-150.0,0.00013488,2]
[422678172,1779237039000,-163.6318438,0.00013488,2]
[422678174,1779237039000,-163.6318438,0.00013503,2]
[422678048,1779237039000,-623.0,0.0001315,2]
[422678176,1779237039000,-163.6318438,0.00013518,2]
[422678153,1779237039000,-151.300204,0.00013488,2]
[422678128,1779237039000,-1264.40909183,0.0001325,2]
[422678145,1779237039000,-16988.51086168,0.00013365,2]
[422678116,1779237039000,-500.0,0.0001315,2]
[422678063,1779237039000,-623.0,0.0001315,2]
[422678052,1779237039000,-349.07736479,0.0001315,2]
[422678118,1779237039000,-500.0,0.0001315,2]
[422678067,1779237039000,-623.38423794,0.0001315,2]
[422678065,1779237039000,-623.0,0.0001315,2]
[422678069,1779237039000,-500.0,0.0001315,2]
[422678079,1779237039000,-150.0,0.0001315,2]
[422678071,1779237039000,-500.0,0.0001315,2]
[422678075,1779237039000,-500.0,0.0001315,2]
[422678081,1779237039000,-500.0,0.0001315,2]
[422678073,1779237039000,-500.0,0.0001315,2]
[422678084,1779237039000,-500.0,0.0001315,2]
[422678086,1779237039000,-150.0,0.0001315,2]
[422678088,1779237039000,-256.32821497,0.0001315,2]
[422678077,1779237039000,-500.0,0.0001315,2]
[422678090,1779237039000,-500.0,0.0001315,2]
[422678114,1779237039000,-500.0,0.0001315,2]
[422678106,1779237039000,-413.19836164,0.0001315,2]
[422678108,1779237039000,-500.0,0.0001315,2]
[422678110,1779237039000,-500.0,0.0001315,2]
[422678100,1779237039000,-185.87830768,0.0001315,2]
[422678096,1779237039000,-500.0,0.0001315,2]
[422678112,1779237039000,-500.0,0.0001315,2]
[422678104,1779237039000,-500.0,0.0001315,2]
[422678094,1779237039000,-150.0,0.0001315,2]
[422678092,1779237039000,-500.0,0.0001315,2]
[422678102,1779237039000,-500.0,0.0001315,2]
[422678098,1779237039000,-500.0,0.0001315,2]
[422678267,1779237040000,-500.0,0.00013698,2]
[422678265,1779237040000,-500.0,0.00013698,2]
[422678263,1779237040000,-500.0,0.00013698,2]
[422678257,1779237040000,-500.0,0.00013698,2]
[422678261,1779237040000,-500.0,0.00013698,2]
[422678253,1779237040000,-500.0,0.00013698,2]
[422678255,1779237040000,-501.52136139,0.00013698,2]
[422678251,1779237040000,-500.0,0.00013698,2]
[422678249,1779237040000,-500.0,0.00013698,2]
[422678247,1779237040000,-500.0,0.00013698,2]
[422678242,1779237040000,-500.0,0.00013698,2]
[422678245,1779237040000,-500.0,0.00013698,2]
[422678259,1779237040000,-500.0,0.00013698,2]
[422678270,1779237040000,-500.0,0.00013698,2]
[422678296,1779237040000,-500.0,0.00013698,2]
[422678274,1779237040000,-500.0,0.00013698,2]
[422678275,1779237040000,-500.0,0.00013698,2]
[422678283,1779237040000,-500.0,0.00013698,2]
[422678285,1779237040000,-500.0,0.00013698,2]
[422678287,1779237040000,-500.0,0.00013698,2]
[422678281,1779237040000,-500.0,0.00013698,2]
[422678280,1779237040000,-500.0,0.00013698,2]
[422678277,1779237040000,-500.0,0.00013698,2]
[422678290,1779237040000,-500.0,0.00013698,2]
[422678291,1779237040000,-500.0,0.00013698,2]
[422678294,1779237040000,-500.0,0.00013698,2]
[422678298,1779237040000,-500.0,0.00013698,2]
[422678238,1779237040000,-150.0,0.00013687,2]
[422678271,1779237040000,-478.0,0.00013698,2]
[422678240,1779237040000,-500.0,0.00013698,2]
[422678180,1779237040000,-163.6318438,0.00013533,2]
[422678229,1779237040000,-163.6318438,0.00013669,2]
[422678300,1779237040000,-500.0,0.00013698,2]
[422678188,1779237040000,-150.0,0.00013563,2]
[422678182,1779237040000,-150.0,0.00013545,2]
[422678184,1779237040000,-163.6318438,0.00013548,2]
[422678186,1779237040000,-150.0,0.00013561,2]
[422678178,1779237040000,-150.0,0.00013524,2]
[422678190,1779237040000,-163.6318438,0.00013563,2]
[422678192,1779237040000,-163.6318438,0.00013578,2]
[422678194,1779237040000,-150.0,0.00013588,2]
[422678198,1779237040000,-150.0,0.00013597,2]
[422678208,1779237040000,-170.0,0.00013612,2]
[422678202,1779237040000,-150.0,0.00013603,2]
[422678215,1779237040000,-163.6318438,0.00013624,2]
[422678209,1779237040000,-29963.62308137,0.00013612,2]
[422678204,1779237040000,-103723.56,0.00013608,2]
[422678206,1779237040000,-163.6318438,0.00013609,2]
[422678196,1779237040000,-163.6318438,0.00013594,2]
[422678200,1779237040000,-16988.51086168,0.00013598,2]
[422678211,1779237040000,-150.0,0.00013613,2]
[422678214,1779237040000,-500.0,0.00013618,2]
[422678217,1779237040000,-150.0,0.00013634,2]
[422678220,1779237040000,-150.0,0.00013638,2]
[422678221,1779237040000,-163.6318438,0.00013639,2]
[422678225,1779237040000,-163.6318438,0.00013654,2]
[422678223,1779237040000,-150.0,0.00013654,2]
[422678231,1779237040000,-150.0,0.0001367,2]
[422678227,1779237040000,-150.0,0.00013661,2]
[422678236,1779237040000,-163.6318438,0.00013684,2]
[422678233,1779237040000,-150.0,0.00013675,2]
[422678243,1779237040000,-500.0,0.00013698,2]
[422678302,1779237040000,-500.0,0.00013698,2]
[422678424,1779237040000,-500.0,0.00013698,2]
[422678304,1779237040000,-500.0,0.00013698,2]
[422678372,1779237040000,-500.0,0.00013698,2]
[422678374,1779237040000,-500.0,0.00013698,2]
[422678376,1779237040000,-500.0,0.00013698,2]
[422678390,1779237040000,-517.5226293,0.00013698,2]
[422678378,1779237040000,-500.0,0.00013698,2]
[422678393,1779237040000,-500.0,0.00013698,2]
[422678395,1779237040000,-500.0,0.00013698,2]
[422678380,1779237040000,-500.0,0.00013698,2]
[422678386,1779237040000,-500.0,0.00013698,2]
[422678401,1779237040000,-500.0,0.00013698,2]
[422678382,1779237040000,-500.0,0.00013698,2]
[422678397,1779237040000,-500.0,0.00013698,2]
[422678399,1779237040000,-500.0,0.00013698,2]
[422678355,1779237040000,-500.0,0.00013698,2]
[422678388,1779237040000,-500.0,0.00013698,2]
[422678405,1779237040000,-500.0,0.00013698,2]
[422678409,1779237040000,-500.0,0.00013698,2]
[422678407,1779237040000,-500.0,0.00013698,2]
[422678418,1779237040000,-500.0,0.00013698,2]
[422678416,1779237040000,-500.0,0.00013698,2]
[422678411,1779237040000,-500.0,0.00013698,2]
[422678420,1779237040000,-500.0,0.00013698,2]
[422678413,1779237040000,-500.0,0.00013698,2]
[422678422,1779237040000,-500.0,0.00013698,2]
[422678427,1779237040000,-500.0,0.00013698,2]
[422678429,1779237040000,-689.57,0.00013698,2]
[422678431,1779237040000,-689.57,0.00013698,2]
[422678312,1779237040000,-921.98,0.00013698,2]
[422678403,1779237040000,-500.0,0.00013698,2]
[422678353,1779237040000,-500.0,0.00013698,2]
[422678384,1779237040000,-500.0,0.00013698,2]
[422678359,1779237040000,-500.0,0.00013698,2]
[422678316,1779237040000,-921.98,0.00013698,2]
[422678370,1779237040000,-500.0,0.00013698,2]
[422678306,1779237040000,-500.0,0.00013698,2]
[422678318,1779237040000,-921.98,0.00013698,2]
[422678313,1779237040000,-921.98,0.00013698,2]
[422678307,1779237040000,-309.02129379,0.00013698,2]
[422678309,1779237040000,-921.98,0.00013698,2]
[422678320,1779237040000,-921.98,0.00013698,2]
[422678324,1779237040000,-921.98,0.00013698,2]
[422678326,1779237040000,-921.98,0.00013698,2]
[422678328,1779237040000,-921.98,0.00013698,2]
[422678337,1779237040000,-921.98,0.00013698,2]
[422678330,1779237040000,-921.98,0.00013698,2]
[422678335,1779237040000,-921.98,0.00013698,2]
[422678333,1779237040000,-921.98,0.00013698,2]
[422678322,1779237040000,-921.98,0.00013698,2]
[422678368,1779237040000,-500.0,0.00013698,2]
[422678357,1779237040000,-500.0,0.00013698,2]
[422678343,1779237040000,-500.0,0.00013698,2]
[422678366,1779237040000,-500.0,0.00013698,2]
[422678362,1779237040000,-500.0,0.00013698,2]
[422678363,1779237040000,-500.0,0.00013698,2]
[422678347,1779237040000,-500.0,0.00013698,2]
[422678351,1779237040000,-500.0,0.00013698,2]
[422678349,1779237040000,-500.0,0.00013698,2]
[422678340,1779237040000,-921.98,0.00013698,2]
[422678339,1779237040000,-921.98,0.00013698,2]
[422678342,1779237040000,-921.98,0.00013698,2]
[422678341,1779237040000,-921.98,0.00013698,2]
[422678345,1779237040000,-500.0,0.00013698,2]
[422678519,1779237041000,-490.0,0.00013698,2]
[422678533,1779237041000,-500.0,0.00013698,2]
[422678521,1779237041000,-500.0,0.00013698,2]
[422678523,1779237041000,-500.0,0.00013698,2]
[422678527,1779237041000,-500.0,0.00013698,2]
[422678517,1779237041000,-500.0,0.00013698,2]
[422678505,1779237041000,-500.0,0.00013698,2]
[422678515,1779237041000,-500.0,0.00013698,2]
[422678509,1779237041000,-500.0,0.00013698,2]
[422678507,1779237041000,-500.0,0.00013698,2]
[422678511,1779237041000,-500.0,0.00013698,2]
[422678535,1779237041000,-500.0,0.00013698,2]
[422678513,1779237041000,-500.0,0.00013698,2]
[422678525,1779237041000,-500.0,0.00013698,2]
[422678565,1779237041000,-371.97687373,0.00013698,2]
[422678531,1779237041000,-500.0,0.00013698,2]
[422678537,1779237041000,-500.0,0.00013698,2]
[422678539,1779237041000,-500.0,0.00013698,2]
[422678543,1779237041000,-500.0,0.00013698,2]
[422678547,1779237041000,-500.0,0.00013698,2]
[422678549,1779237041000,-500.0,0.00013698,2]
[422678545,1779237041000,-500.0,0.00013698,2]
[422678561,1779237041000,-500.0,0.00013698,2]
[422678541,1779237041000,-500.0,0.00013698,2]
[422678553,1779237041000,-500.0,0.00013698,2]
[422678555,1779237041000,-500.0,0.00013698,2]
[422678551,1779237041000,-588.50661964,0.00013698,2]
[422678559,1779237041000,-500.0,0.00013698,2]
[422678503,1779237041000,-500.0,0.00013698,2]
[422678528,1779237041000,-500.0,0.00013698,2]
[422678491,1779237041000,-500.0,0.00013698,2]
[422678436,1779237041000,-689.57,0.00013698,2]
[422678487,1779237041000,-500.0,0.00013698,2]
[422678433,1779237041000,-689.57,0.00013698,2]
[422678446,1779237041000,-689.57,0.00013698,2]
[422678438,1779237041000,-689.57,0.00013698,2]
[422678444,1779237041000,-689.57,0.00013698,2]
[422678450,1779237041000,-689.57,0.00013698,2]
[422678448,1779237041000,-689.57,0.00013698,2]
[422678441,1779237041000,-689.57,0.00013698,2]
[422678440,1779237041000,-689.57,0.00013698,2]
[422678452,1779237041000,-689.57,0.00013698,2]
[422678454,1779237041000,-689.57,0.00013698,2]
[422678456,1779237041000,-689.57,0.00013698,2]
[422678458,1779237041000,-689.57,0.00013698,2]
[422678463,1779237041000,-689.57,0.00013698,2]
[422678461,1779237041000,-689.57,0.00013698,2]
[422678489,1779237041000,-500.0,0.00013698,2]
[422678465,1779237041000,-500.0,0.00013698,2]
[422678473,1779237041000,-500.0,0.00013698,2]
[422678469,1779237041000,-500.0,0.00013698,2]
[422678467,1779237041000,-500.0,0.00013698,2]
[422678479,1779237041000,-500.0,0.00013698,2]
[422678475,1779237041000,-500.0,0.00013698,2]
[422678477,1779237041000,-500.0,0.00013698,2]
[422678483,1779237041000,-500.0,0.00013698,2]